fUST/lending_fUST_20240410
["ID","MTS","AMOUNT","RATE_DAILY","PERIOD"]
[322078837,1712747444024,-216.578789,0.00032876,2]
[322078838,1712747444033,-216.578789,0.00032876,2]
[322078839,1712747444042,-216.578789,0.00032876,2]
[322078840,1712747444053,-216.578789,0.00032876,2]
[322078841,1712747444062,-216.578789,0.00032876,2]
[322078842,1712747444071,-216.578789,0.00032876,2]
[322078843,1712747444080,-216.578789,0.00032876,2]
[322078844,1712747444089,-216.578789,0.00032876,2]
[322078845,1712747444098,-216.578789,0.00032876,2]
[322078846,1712747444107,-216.578789,0.00032876,2]
[322078847,1712747444117,-216.578789,0.00032876,2]
[322078848,1712747444126,-500.0,0.00032876,5]
[322078849,1712747444135,-216.578789,0.00032876,2]
[322078850,1712747444144,-500.0,0.00032876,5]
[322078851,1712747444153,-216.578789,0.00032876,2]
[322078852,1712747444162,-500.0,0.00032876,5]
[322078853,1712747444172,-216.578789,0.00032876,2]
[322078854,1712747444182,-500.0,0.00032876,5]
[322078855,1712747444194,-216.578789,0.00032876,2]
[322078856,1712747444203,-391.14,0.00032876,5]
[322078857,1712747444212,-216.578782,0.00032876,2]
[322078858,1712747444222,-500.0,0.00032876,5]
[322078859,1712747444233,-500.0,0.00032876,5]
[322078860,1712747444243,-500.0,0.00032876,5]
[322078861,1712747444253,-500.0,0.00032876,5]
[322078862,1712747444263,-500.0,0.00032876,5]
[322078863,1712747444273,-642.52,0.00032876,5]
[322078864,1712747444282,-642.52,0.00032876,5]
[322078865,1712747444291,-642.52,0.00032876,5]
[322078866,1712747444301,-642.52,0.00032876,5]
[322078867,1712747444310,-642.52,0.00032876,5]
[322078868,1712747444319,-487.9799771,0.00032876,5]
[322078869,1712747444329,-500.0,0.00032876,5]
[322078870,1712747444338,-484.02321482,0.00032876,5]
[322078871,1712747444347,-500.0,0.00032876,5]
[322078872,1712747444356,-500.0,0.00032876,5]
[322078873,1712747444365,-500.0,0.00032876,5]
[322078874,1712747444464,-500.0,0.00032876,5]
[322078875,1712747444474,-500.0,0.00032876,5]
[322078876,1712747444482,-500.0,0.00032876,5]
[322078877,1712747444492,-500.0,0.00032876,5]
[322078878,1712747444501,-500.0,0.00032876,5]
[322078879,1712747444510,-504.70509203,0.00032876,5]
[322078880,1712747444519,-500.0,0.00032876,5]
[322078881,1712747444528,-500.0,0.00032876,5]
[322078882,1712747444537,-386.00511812,0.00032876,5]
[322078883,1712747444546,-500.0,0.00032876,5]
[322078884,1712747444555,-1566.87,0.00032876,5]
[322078885,1712747444564,-1566.87,0.00032876,5]
[322078886,1712747444573,-1566.87,0.00032876,5]
[322078887,1712747444582,-1566.87,0.00032876,5]
[322078888,1712747444591,-500.0,0.00032876,5]
[322078889,1712747444600,-500.0,0.00032876,5]
[322078890,1712747444609,-500.0,0.00032876,5]
[322078891,1712747444618,-500.0,0.00032876,5]
[322078892,1712747444626,-500.0,0.00032876,5]
[322078893,1712747444635,-500.0,0.00032876,5]
[322078894,1712747444644,-500.0,0.00032876,5]
[322078895,1712747444653,-500.0,0.00032876,5]
[322078896,1712747444661,-500.0,0.00032876,5]
[322078897,1712747444670,-531.23321217,0.00032876,5]
[322078898,1712747444680,-500.0,0.00032935,2]
[322078899,1712747444688,-638.41191875,0.0003305,2]
[322078900,1712747444697,-223.15608638,0.00033129,4]
[322078901,1712747444707,-294.063898,0.00033165,2]
[322078902,1712747444716,-468.381394,0.00033165,2]
[322078903,1712747444725,-418.262317,0.00033165,2]
[322078904,1712747444734,-500.0,0.00033599,5]
[322078905,1712747444743,-500.0,0.00033599,5]
[322078906,1712747444752,-1566.87,0.00033599,5]
[322078907,1712747444763,-1211.2733208,0.000336,2]
[322078908,1712747444772,-153.452504,0.0003366,7]
[322078909,1712747444781,-222.24496347,0.00033707,6]
[322078910,1712747444790,-638.41191875,0.00033725,2]
[322078911,1712747444800,-176.98103533,0.00033801,7]
[322078912,1712747444810,-1000.0,0.00034,2]
[322078913,1712747444819,-464.76907436,0.00034,4]
[322078914,1712747444828,-173.64417349,0.00034217,7]
[322078915,1712747444837,-638.41191875,0.000344,2]
[322078916,1712747444846,-500.0,0.00034497,5]
[322078917,1712747444855,-500.0,0.00034497,5]
[322078918,1712747444864,-1066.64,0.00034498,5]
[322078919,1712747444873,-500.0,0.00034498,5]
[322078920,1712747444882,-573.04,0.00034498,5]
[322078921,1712747444891,-500.0,0.00034498,5]
[322078922,1712747444900,-500.0,0.00034498,5]
[322078923,1712747444910,-500.0,0.00034498,5]
[322078924,1712747444921,-500.0,0.00034498,5]
[322078925,1712747444932,-1969.62,0.00034498,5]
[322078926,1712747444942,-500.0,0.00034498,5]
[322078927,1712747444954,-500.0,0.00034498,5]
[322078928,1712747444965,-500.0,0.00034498,5]
[322078929,1712747444975,-642.52,0.00034498,5]
[322078930,1712747444986,-500.0,0.00034498,5]
[322078931,1712747444996,-1566.87,0.00034498,5]
[322078932,1712747445005,-500.0,0.00034498,5]
[322078933,1712747445014,-500.0,0.00034499,2]
[322078934,1712747445023,-500.0,0.00034499,2]
[322078935,1712747445032,-500.0,0.00034499,5]
[322078936,1712747445041,-500.0,0.00034499,5]
[322078937,1712747445051,-1541.1157895,0.00034499,2]
[322078938,1712747445060,-500.0,0.00034499,5]
[322078939,1712747445069,-500.0,0.00034499,5]
[322078940,1712747445078,-1066.64,0.00034499,5]
[322078941,1712747445087,-500.0,0.00034499,5]
[322078942,1712747445097,-500.0,0.00034499,5]
[322078943,1712747445105,-500.0,0.00034499,5]
[322078944,1712747445114,-500.0,0.00034499,5]
[322078945,1712747445123,-421.37,0.00034499,5]
[322078946,1712747445133,-573.04,0.00034499,5]
[322078947,1712747445142,-500.0,0.00034499,5]
[322078948,1712747445151,-500.0,0.00034499,5]
[322078949,1712747445161,-500.0,0.00034499,5]
[322078950,1712747445170,-500.0,0.00034499,5]
[322078951,1712747445179,-1969.62,0.00034499,5]
[322078952,1712747445192,-500.0,0.00034499,5]
[322078953,1712747445202,-500.0,0.00034499,5]
[322078954,1712747445211,-500.0,0.00034499,5]
[322078955,1712747445220,-642.52,0.00034499,5]
[322078956,1712747445230,-500.0,0.00034499,5]
[322078957,1712747445240,-1566.87,0.00034499,5]
[322078958,1712747445249,-500.0,0.00034499,5]
[322078959,1712747445260,-20000.0,0.000345,2]
[322078960,1712747445269,-20000.0,0.000345,2]
[322078961,1712747445279,-20000.0,0.000345,2]
[322078962,1712747445288,-153.0,0.00034539,2]
[322078963,1712747445298,-453.3273481,0.00034539,2]
[322078964,1712747445307,-823.0,0.00034605,2]
[322078965,1712747445317,-200.0,0.00034734,120]
[322078966,1712747445326,-153.452504,0.00034754,7]
[322078967,1712747445335,-222.24496347,0.0003477,7]
[322078968,1712747445344,-500.0,0.00034795,5]
[322078969,1712747445353,-1066.64,0.00034796,5]
[322078970,1712747445362,-491.06,0.00034796,5]
[322078971,1712747445371,-573.04,0.00034796,5]
[322078972,1712747445380,-500.0,0.00034796,5]
[322078973,1712747445389,-500.0,0.00034796,5]
[322078974,1712747445398,-500.0,0.00034796,5]
[322078975,1712747445408,-1566.87,0.00034796,5]
[322078976,1712747445417,-500.0,0.00034797,5]
[322078977,1712747445426,-500.0,0.00034797,5]
[322078978,1712747445435,-1969.62,0.00034797,5]
[322078979,1712747445445,-500.0,0.00034797,5]
[322078980,1712747445454,-642.52,0.00034797,5]
[322078981,1712747445463,-500.0,0.00034797,5]
[322078982,1712747445472,-500.0,0.00034797,5]
[322078983,1712747445482,-155.36488157,0.00034798,4]
[322078984,1712747445491,-458.61136286,0.00034798,33]
[322078985,1712747445501,-500.0,0.00034798,2]
[322078986,1712747445510,-500.0,0.00034798,2]
[322078987,1712747445519,-500.0,0.00034798,5]
[322078988,1712747445529,-500.0,0.00034798,5]
[322078989,1712747445538,-500.0,0.00034798,5]
[322078990,1712747445549,-348.55910783,0.00034798,5]
[322078991,1712747445558,-1066.64,0.00034798,5]
[322078992,1712747445567,-1066.64,0.00034798,5]
[322078993,1712747445575,-500.0,0.00034798,5]
[322078994,1712747445585,-500.0,0.00034798,5]
[322078995,1712747445594,-573.04,0.00034798,5]
[322078996,1712747445603,-573.04,0.00034798,5]
[322078997,1712747445613,-500.0,0.00034798,5]
[322078998,1712747445622,-500.0,0.00034798,5]
[322078999,1712747445631,-500.0,0.00034798,5]
[322079000,1712747445641,-500.0,0.00034798,5]
[322079001,1712747445650,-500.0,0.00034798,5]
[322079002,1712747445659,-156.6305307,0.00034798,4]
[322079003,1712747445668,-197.45745672,0.00034798,4]
[322079004,1712747445677,-1969.62,0.00034798,5]
[322079005,1712747445686,-500.0,0.00034798,5]
[322079006,1712747445695,-500.0,0.00034798,5]
[322079007,1712747445704,-500.0,0.00034798,5]
[322079008,1712747445714,-500.0,0.00034798,5]
[322079009,1712747445723,-500.0,0.00034798,5]
[322079010,1712747445732,-642.52,0.00034798,5]
[322079011,1712747445741,-500.0,0.00034798,5]
[322079012,1712747445750,-1566.87,0.00034798,5]
[322079013,1712747445759,-1566.87,0.00034798,5]
[322079014,1712747445768,-500.0,0.00034798,5]
[322079015,1712747445777,-154.90705577,0.00034799,4]
[322079016,1712747445786,-500.0,0.00034799,2]
[322079017,1712747445796,-500.0,0.00034799,2]
[322079019,1712747445806,-500.0,0.00034799,2]
[322079021,1712747445816,-500.0,0.00034799,2]
[322079023,1712747445825,-570.05427582,0.00034799,2]
[322079025,1712747445834,-500.0,0.00034799,5]
[322079027,1712747445843,-500.0,0.00034799,5]
[322079029,1712747445852,-500.0,0.00034799,5]
[322079031,1712747445860,-500.0,0.00034799,5]
[322079033,1712747445869,-500.0,0.00034799,5]
[322079034,1712747445878,-1066.64,0.00034799,5]
[322079035,1712747445887,-1066.64,0.00034799,5]
[322079037,1712747445896,-1066.64,0.00034799,5]
[322079039,1712747445905,-1066.64,0.00034799,5]
[322079041,1712747445915,-1066.64,0.00034799,5]
[322079044,1712747445923,-500.0,0.00034799,5]
[322079046,1712747445932,-286.4991511,0.00034799,5]
[322079048,1712747445941,-573.04,0.00034799,5]
[322079051,1712747445950,-573.04,0.00034799,5]
[322079054,1712747445959,-573.04,0.00034799,5]
[322079056,1712747445968,-573.04,0.00034799,5]
[322079058,1712747445977,-573.04,0.00034799,5]
[322079061,1712747445987,-500.0,0.00034799,5]
[322079064,1712747445996,-500.0,0.00034799,5]
[322079066,1712747446005,-500.0,0.00034799,5]
[322079069,1712747446014,-307.88335545,0.00034799,5]
[322079072,1712747446023,-500.0,0.00034799,5]
[322079075,1712747446032,-500.0,0.00034799,5]
[322079077,1712747446041,-500.0,0.00034799,5]
[322079079,1712747446050,-586.925704,0.00034799,5]
[322079082,1712747446059,-500.0,0.00034799,5]
[322079085,1712747446069,-500.0,0.00034799,5]
[322079087,1712747446078,-500.0,0.00034799,5]
[322079090,1712747446088,-500.0,0.00034799,5]
[322079093,1712747446097,-500.0,0.00034799,5]
[322079096,1712747446106,-500.0,0.00034799,5]
[322079098,1712747446114,-1969.62,0.00034799,5]
[322079101,1712747446123,-1969.62,0.00034799,5]
[322079104,1712747446133,-1969.62,0.00034799,5]
[322079105,1712747446142,-1969.62,0.00034799,5]
[322079108,1712747446151,-1969.62,0.00034799,5]
[322079111,1712747446160,-1969.62,0.00034799,5]
[322079113,1712747446171,-500.0,0.00034799,5]
[322079115,1712747446183,-500.0,0.00034799,5]
[322079117,1712747446192,-500.0,0.00034799,5]
[322079120,1712747446202,-500.0,0.00034799,5]
[322079123,1712747446211,-500.0,0.00034799,5]
[322079127,1712747446220,-500.0,0.00034799,5]
[322079131,1712747446230,-473.51200429,0.00034799,5]
[322079134,1712747446239,-500.0,0.00034799,5]
[322079136,1712747446248,-500.0,0.00034799,5]
[322079140,1712747446258,-500.0,0.00034799,5]
[322079141,1712747446267,-500.0,0.00034799,5]
[322079142,1712747446277,-500.0,0.00034799,5]
[322079143,1712747446286,-642.52,0.00034799,5]
[322079144,1712747446295,-642.52,0.00034799,5]
[322079145,1712747446305,-642.52,0.00034799,5]
[322079146,1712747446314,-642.52,0.00034799,5]
[322079147,1712747446322,-642.52,0.00034799,5]
[322079148,1712747446331,-642.52,0.00034799,5]
[322079149,1712747446341,-500.0,0.00034799,5]
[322079150,1712747446350,-500.0,0.00034799,5]
[322079151,1712747446360,-500.0,0.00034799,5]
[322079153,1712747446369,-500.0,0.00034799,5]
[322079154,1712747446378,-500.0,0.00034799,5]
[322079155,1712747446388,-500.0,0.00034799,5]
[322079156,1712747446397,-1566.87,0.00034799,5]
[322079157,1712747446406,-1566.87,0.00034799,5]
[322079158,1712747446415,-1566.87,0.00034799,5]
[322079160,1712747446425,-1566.87,0.00034799,5]
[322079161,1712747446434,-1566.87,0.00034799,5]
[322079162,1712747446443,-500.0,0.00034799,5]
[322079163,1712747446452,-48795.44686452,0.000348,2]
[322079165,1712747446515,-1814.74858133,0.000348,2]
[322079166,1712747446550,-500.0,0.00032876,5]
[322079167,1712747446558,-38.43207224,0.00032876,5]
[322079191,1712747657714,-3782816.6997242,0.0003487,60]
[322079192,1712747657739,-217183.3002758,0.0003487,60]
[322079193,1712747670246,-3000000.0,0.0003487,60]
[322079194,1712747683069,-364.0,0.00034855,35]
[322079195,1712747683094,-364.0,0.00034855,35]
[322079196,1712747683118,-364.0,0.00034865,35]
[322079197,1712747683141,-364.0,0.00034865,35]
[322079198,1712747683164,-364.0,0.00034865,35]
[322079199,1712747683187,-368.88,0.00034865,35]
[322079200,1712747683217,-364.0,0.00034875,35]
[322079201,1712747683240,-364.0,0.00034875,35]
[322079202,1712747683266,-364.0,0.00034875,35]
[322079203,1712747683289,-364.0,0.00034875,35]
[322079204,1712747683314,-200.0,0.00034903,120]
[322079205,1712747683341,-303.0,0.00035,30]
[322079206,1712747683366,-2782.77953969,0.00035046,120]
[322079207,1712747683390,-193069.34046031,0.00035243,30]
[322079208,1712747687346,-200000.0,0.00035243,30]
[322079209,1712747692859,-500000.0,0.00035243,30]
[322079210,1712747696473,-500000.0,0.00035243,30]
[322079211,1712747700005,-1676.83380129,0.00035243,30]
[322079212,1712747700030,-6250.0,0.00035616,120]
[322079213,1712747700054,-180.01,0.0003584,35]
[322079214,1712747700078,-200.0,0.00036099,120]
[322079215,1712747700209,-200.0,0.00036102,120]
[322079216,1712747700234,-200.0,0.00036494,120]
[322079217,1712747700263,-398.08743543,0.000369,30]
[322079218,1712747700291,-200.0,0.00037589,120]
[322079219,1712747700316,-200.0,0.000377,120]
[322079220,1712747700346,-200.0,0.00037879,120]
[322079221,1712747700371,-441504.55228383,0.00038,30]
[322079222,1712747700393,-544.4974432,0.00038,120]
[322079223,1712747700418,-200.0,0.00038285,120]
[322079224,1712747700444,-200.0,0.00038345,120]
[322079225,1712747701453,6250.0,0.00035616,120]
[322079341,1712748559113,-818.22379114,0.000255,4]
[322079342,1712748592963,166.47144923,0.000255,2]
[322079364,1712748632857,-53.75615739,0.000255,2]
[322079365,1712748632868,-272.717155,0.00027397,2]
[322079366,1712748632878,-161.5298606,0.00027397,2]
[322079367,1712748632888,-154.92253873,0.0003,4]
[322079368,1712748632897,-1143.84101833,0.00031318,30]
[322079369,1712748632907,-171.815786,0.00031505,2]
[322079370,1712748632917,-166.666666,0.00032045,2]
[322079371,1712748632928,-400.0,0.00032875,2]
[322079372,1712748632939,-303.0,0.00032876,7]
[322079373,1712748632953,-500.0,0.00032876,5]
[322079374,1712748632964,-500.0,0.00032876,5]
[322079375,1712748632975,-500.0,0.00032876,5]
[322079376,1712748632986,-500.0,0.00032876,5]
[322079377,1712748632997,-500.0,0.00032876,5]
[322079378,1712748633008,-166.666666,0.00032918,2]
[322079379,1712748633019,-2105.31226181,0.00033143,2]
[322079380,1712748633030,-272.717155,0.00033165,2]
[322079381,1712748633041,-500.0,0.0003375,2]
[322079382,1712748633052,-166.666666,0.00033792,2]
[322079383,1712748633063,-464.76907436,0.00034,4]
[322079384,1712748633211,-200.0,0.00034094,120]
[322079385,1712748633226,-500.0,0.00034497,5]
[322079386,1712748633235,-500.0,0.00034497,5]
[322079387,1712748633245,-500.0,0.00034497,5]
[322079388,1712748633255,-587.58,0.00034497,5]
[322079389,1712748633265,-422.27529668,0.00034499,5]
[322079390,1712748633275,-166.666666,0.00034666,2]
[322079391,1712748633285,-591.46650319,0.00034698,30]
[322079392,1712748633295,-158.42642321,0.00034699,2]
[322079393,1712748633305,-264.86457588,0.00034699,2]
[322079394,1712748633315,-2000.0,0.000347,2]
[322079395,1712748633325,-264.86457587,0.00034709,2]
[322079396,1712748633335,-264.86457587,0.00034718,2]
[322079397,1712748633346,-251.92986971,0.00034798,2]
[322079398,1712748633355,-273.94278692,0.00034798,4]
[322079399,1712748633366,-2782.77953969,0.00034798,120]
[322079400,1712748633376,-500.0,0.00034798,5]
[322079401,1712748633385,-500.0,0.00034798,5]
[322079402,1712748633396,-1112.01665146,0.00034798,4]
[322079403,1712748633438,-1973.94871826,0.00034798,4]
[322079943,1712748643864,-1319.94749316,0.00034798,4]
[322079945,1712748643873,-500.0,0.00034798,5]
[322079947,1712748643882,-738.6,0.00034798,5]
[322079949,1712748643891,-500.0,0.00034798,5]
[322079951,1712748643901,-500.0,0.00034798,5]
[322079953,1712748643910,-500.0,0.00034798,5]
[322079955,1712748643919,-500.0,0.00034798,5]
[322079957,1712748643928,-500.0,0.00034798,5]
[322079959,1712748643937,-563.1,0.00034798,5]
[322079961,1712748643946,-4671.28775459,0.00034799,4]
[322079963,1712748643955,-500.0,0.00034799,5]
[322079965,1712748643963,-500.0,0.00034799,5]
[322079967,1712748643974,-500.0,0.00034799,5]
[322079969,1712748643983,-500.0,0.00034799,5]
[322079971,1712748643992,-500.0,0.00034799,5]
[322079973,1712748644001,-500.0,0.00034799,5]
[322079975,1712748644010,-500.0,0.00034799,5]
[322079977,1712748644019,-500.0,0.00034799,5]
[322079979,1712748644028,-500.0,0.00034799,5]
[322079981,1712748644037,-500.0,0.00034799,5]
[322079983,1712748644046,-500.0,0.00034799,5]
[322079985,1712748644054,-500.0,0.00034799,5]
[322079986,1712748644063,-500.0,0.00034799,5]
[322079988,1712748644072,-738.6,0.00034799,5]
[322079990,1712748644081,-738.6,0.00034799,5]
[322079992,1712748644090,-738.6,0.00034799,5]
[322079994,1712748644099,-738.6,0.00034799,5]
[322079996,1712748644108,-738.6,0.00034799,5]
[322079998,1712748644116,-500.0,0.00034799,5]
[322080000,1712748644125,-500.0,0.00034799,5]
[322080002,1712748644135,-500.0,0.00034799,5]
[322080004,1712748644144,-500.0,0.00034799,5]
[322080006,1712748644152,-500.0,0.00034799,5]
[322080008,1712748644161,-500.0,0.00034799,5]
[322080010,1712748644170,-500.0,0.00034799,5]
[322080012,1712748644179,-500.0,0.00034799,5]
[322080014,1712748644188,-500.0,0.00034799,5]
[322080016,1712748644197,-500.0,0.00034799,5]
[322080018,1712748644206,-500.0,0.00034799,5]
[322080020,1712748644215,-500.0,0.00034799,5]
[322080022,1712748644226,-500.0,0.00034799,5]
[322080024,1712748644235,-500.0,0.00034799,5]
[322080026,1712748644244,-500.0,0.00034799,5]
[322080029,1712748644254,-500.0,0.00034799,5]
[322080031,1712748644263,-500.0,0.00034799,5]
[322080033,1712748644272,-334.23656614,0.00034799,5]
[322080035,1712748644281,-500.0,0.00034799,5]
[322080036,1712748644291,-500.0,0.00034799,5]
[322080038,1712748644299,-500.0,0.00034799,5]
[322080039,1712748644309,-500.0,0.00034799,5]
[322080041,1712748644319,-500.0,0.00034799,5]
[322080043,1712748644328,-500.0,0.00034799,7]
[322080045,1712748644337,-500.0,0.00034799,7]
[322080046,1712748644346,-371.09942668,0.00034799,7]
[322080048,1712748644355,-563.1,0.00034799,5]
[322080050,1712748644364,-563.1,0.00034799,5]
[322080051,1712748644372,-563.1,0.00034799,5]
[322080052,1712748644381,-563.1,0.00034799,5]
[322080053,1712748644390,-563.1,0.00034799,5]
[322080054,1712748644399,-24756.93288193,0.000348,2]
[322080055,1712748644408,-22340.05778014,0.000348,2]
[322080087,1712748646668,-464.76907436,0.00034798,4]
[322080088,1712748646677,-183.0,0.00034799,2]
[322080089,1712748646686,-14872.2166134,0.000348,2]
[322080106,1712749756174,-166.666666,0.000255,2]
[322080107,1712749801700,1730.35063266,0.000234,2]
[322080187,1712749831838,-70.58708616,0.000255,2]
[322080189,1712749831847,-150.0,0.0002693,2]
[322080191,1712749831866,-504.55456,0.00027397,2]
[322080193,1712749831882,-335.00436,0.00027397,2]
[322080195,1712749831892,-1730.35063266,0.000284,2]
[322080197,1712749831902,-154.92253873,0.00031398,4]
[322080198,1712749831915,-151.73715757,0.00031399,2]
[322080200,1712749831924,-150.0,0.000315,2]
[322080202,1712749831934,-166.666666,0.00031647,2]
[322080204,1712749831943,-151.73715755,0.00031672,2]
[322080206,1712749831952,-251.34479748,0.00031703,2]
[322080208,1712749831961,-151.73715755,0.00031946,2]
[322080210,1712749831970,-151.73715755,0.00032219,2]
[322080212,1712749831979,-374.404573,0.00032376,2]
[322080214,1712749831989,-151.73715755,0.00032492,2]
[322080216,1712749831998,-166.666666,0.0003251,2]
[322080218,1712749832008,-151.73715755,0.00032766,2]
[322080220,1712749832017,-151.73715755,0.00033039,2]
[322080222,1712749832027,-504.55456,0.00033165,2]
[322080224,1712749832036,-335.00436,0.00033165,2]
[322080226,1712749832046,-151.73715755,0.00033312,2]
[322080228,1712749832055,-166.666666,0.00033372,2]
[322080231,1712749832064,-1730.35063266,0.000334,2]
[322080233,1712749832074,-151.73715755,0.00033585,2]
[322080235,1712749832082,-151.73715755,0.00033859,2]
[322080236,1712749832092,-1211.3943755,0.00033933,2]
[322080239,1712749832101,-464.76907436,0.00034,4]
[322080241,1712749832111,-400.0,0.000341,2]
[322080243,1712749832120,-283.43333732,0.00034102,4]
[322080245,1712749832130,-151.73715755,0.00034132,2]
[322080247,1712749832139,-166.666666,0.00034235,2]
[322080249,1712749832148,-151.73715755,0.00034405,2]
[322080251,1712749832158,-151.73715755,0.00034679,2]
[322080252,1712749832167,-19966.53882765,0.0003468,120]
[322080254,1712749832179,-198.15931985,0.000347,2]
[322080257,1712749832188,-10017.61606535,0.00034765,5]
[322080259,1712749832197,-500.0,0.00034798,5]
[322080261,1712749832207,-292.84279583,0.00034798,5]
[322080281,1712749837905,-207.15720417,0.00034798,5]
[322080282,1712749837915,-500.0,0.00034798,5]
[322080283,1712749837926,-553.95,0.00034798,5]
[322080284,1712749837935,-500.0,0.00034798,5]
[322080285,1712749837944,-500.0,0.00034798,5]
[322080286,1712749837956,-2000.0,0.00034798,2]
[322080287,1712749837965,-190.84289463,0.00034799,2]
[322080288,1712749837974,-411.329828,0.00034799,7]
[322080289,1712749837984,-500.0,0.00034799,5]
[322080290,1712749837993,-500.0,0.00034799,5]
[322080291,1712749838002,-500.0,0.00034799,5]
[322080292,1712749838012,-500.0,0.00034799,5]
[322080293,1712749838021,-500.0,0.00034799,5]
[322080294,1712749838030,-500.0,0.00034799,5]
[322080295,1712749838039,-500.0,0.00034799,5]
[322080296,1712749838050,-425.40814189,0.00034799,5]
[322080297,1712749838060,-553.95,0.00034799,5]
[322080298,1712749838070,-553.95,0.00034799,5]
[322080299,1712749838080,-553.95,0.00034799,5]
[322080300,1712749838090,-281.78,0.00034799,5]
[322080301,1712749838100,-500.0,0.00034799,5]
[322080302,1712749838108,-500.0,0.00034799,5]
[322080303,1712749838117,-500.0,0.00034799,5]
[322080304,1712749838126,-289.02759344,0.00034799,5]
[322080305,1712749838135,-500.0,0.00034799,5]
[322080306,1712749838144,-500.0,0.00034799,5]
[322080307,1712749838153,-500.0,0.00034799,5]
[322080308,1712749838162,-500.0,0.00034799,5]
[322080309,1712749838171,-500.0,0.00034799,5]
[322080310,1712749838180,-500.0,0.00034799,5]
[322080311,1712749838188,-500.0,0.00034799,5]
[322080312,1712749838197,-500.0,0.00034799,5]
[322080313,1712749838206,-500.0,0.00034799,5]
[322080314,1712749838215,-481.7685,0.00034799,5]
[322080315,1712749838223,-24678.73607561,0.000348,2]
[322080316,1712749838232,-22333.21758433,0.000348,2]
[322080456,1712751033123,-161.960794,0.00027397,2]
[322080457,1712751033133,-245.445439,0.00027397,2]
[322080458,1712751033142,-166.666666,0.00031851,2]
[322080459,1712751033152,-187.202286,0.00032528,2]
[322080460,1712751033161,-1211.3943755,0.00032548,2]
[322080461,1712751033170,-150.0,0.000327,2]
[322080462,1712751033180,-166.666666,0.00032719,2]
[322080463,1712751033194,-400.0,0.00033084,2]
[322080464,1712751033204,-24890.0,0.00033085,2]
[322080465,1712751033213,-245.445439,0.00033165,2]
[322080466,1712751033222,-166.666666,0.00033587,2]
[322080467,1712751033231,-464.76907436,0.00034455,4]
[322080468,1712751033239,-166.666666,0.00034456,2]
[322080469,1712751033248,-5641.35235911,0.000345,2]
[322080470,1712751033258,-51.75058537,0.00034501,6]
[322080696,1712751040013,-1241.54841116,0.00034501,6]
[322080700,1712751040041,-39.23481652,0.00034501,6]
[322080702,1712751040050,-198.15931983,0.000347,2]
[322080704,1712751040059,-479.0,0.000347,120]
[322080718,1712751040165,-155.73142258,0.00034798,4]
[322080720,1712751040174,-162.30068945,0.00034798,2]
[322080722,1712751040186,-500.0,0.00034798,5]
[322080724,1712751040196,-500.0,0.00034798,5]
[322080726,1712751040205,-784.17,0.00034798,5]
[322080728,1712751040214,-500.0,0.00034798,5]
[322080730,1712751040223,-500.0,0.00034798,5]
[322080732,1712751040231,-500.0,0.00034798,5]
[322080734,1712751040240,-500.0,0.00034799,5]